[Event "Open Cappelle-la-Grande"]
[Date "2025.02.16"]
[White "Petriashvili, Nikoloz"]
[Black "Zylka, Stanislaw"]
[WhiteElo "2450"]
[BlackElo "2346"]
[Round "3.3.10"]
[Result "1-0"]
[TimeControl "40/5400+30:1800+30"]

1. Nf3 {[%clk 1:30:59]} 1... d5 {[%clk 1:30:46]} 2. g3 {[%clk 1:31:27]} 2... Nc6
{[%clk 1:30:58]} 3. d4 {[%clk 1:31:53]} 3... Bf5 {[%clk 1:31:23]} 4. a3 {[%clk
1:29:09]} 4... e6 {[%clk 1:31:20]} 5. Bg2 {[%clk 1:29:00]} 5... Nf6 {[%clk
1:29:39]} 6. c4 {[%clk 1:28:36]} 6... dxc4 {[%clk 1:17:11]} 7. Qa4 {[%clk
1:26:45]} 7... Be7 {[%clk 1:16:49]} 8. Qxc4 {[%clk 1:25:34]} 8... O-O {[%clk
1:16:04]} 9. O-O {[%clk 1:25:43]} 9... Rc8 {[%clk 1:15:02]} 10. Rd1 {[%clk
1:13:57]} 10... Qd5 {[%clk 1:02:17]} 11. Nbd2 {[%clk 1:14:20]} 11... Rfd8 {[%clk
0:59:30]} 12. e3 {[%clk 1:09:44]} 12... Qxc4 {[%clk 0:43:06]} 13. Nxc4 {[%clk
1:10:13]} 13... Bc2 {[%clk 0:43:27]} 14. Re1 {[%clk 1:10:32]} 14... Be4 {[%clk
0:37:05]} 15. b3 {[%clk 1:07:26]} 15... h6 {[%clk 0:32:21]} 16. Bb2 {[%clk
1:07:43]} 16... Nb8 {[%clk 0:30:17]} 17. b4 {[%clk 1:04:20]} 17... Nbd7 {[%clk
0:29:55]} 18. Ncd2 {[%clk 1:03:53]} 18... Bh7 {[%clk 0:30:04]} 19. Nb3 {[%clk
1:01:15]} 19... Nb6 {[%clk 0:28:38]} 20. Rac1 {[%clk 1:01:44]} 20... Na4 {[%clk
0:25:56]} 21. Ba1 {[%clk 1:02:13]} 21... c6 {[%clk 0:22:34]} 22. Nfd2 {[%clk
1:01:16]} 22... Nd5 {[%clk 0:22:04]} 23. Na5 {[%clk 1:01:18]} 23... Rb8 {[%clk
0:18:25]} 24. Ndb3 {[%clk 1:00:52]} 24... Kf8 {[%clk 0:13:23]} 25. Bf3 {[%clk
0:59:56]} 25... Bd3 {[%clk 0:11:47]} 26. Kg2 {[%clk 0:58:28]} 26... Bb5 {[%clk
0:10:14]} 27. Rc2 {[%clk 0:56:07]} 27... Bd3 {[%clk 0:10:31]} 28. Rd2 {[%clk
0:55:53]} 28... Bb5 {[%clk 0:10:55]} 29. Rc1 {[%clk 0:56:07]} 29... Rdc8 {[%clk
0:11:00]} 30. e4 {[%clk 0:55:52]} 30... Nf6 {[%clk 0:10:11]} 31. Nc4 {[%clk
0:50:18]} 31... Rd8 {[%clk 0:09:07]} 32. h4 {[%clk 0:50:35]} 32... Nd7 {[%clk
0:06:42]} 33. Ne3 {[%clk 0:48:44]} 33... Nf6 {[%clk 0:05:40]} 34. Na5 {[%clk
0:46:36]} 34... Rdc8 {[%clk 0:05:00]} 35. d5 {[%clk 0:44:35]} 35... cxd5 {[%clk
0:04:35]} 36. Rxc8+ {[%clk 0:45:04]} 36... Rxc8 {[%clk 0:04:57]} 37. exd5 {[%clk
0:44:00]} 37... b6 {[%clk 0:02:50]} 38. Nc6 {[%clk 0:43:27]} 38... Nxd5 {[%clk
0:02:43]} 39. Nxa7 {[%clk 0:38:58]} 39... Nxe3+ {[%clk 0:03:01]} 40. fxe3 {[%clk
0:39:22]} 40... Rc1 {[%clk 0:03:22]} 41. Nxb5 {[%clk 0:35:20]} 41... Rxa1 {[%clk
0:01:21]} 42. Bd1 {[%clk 0:35:38]} 42... Nb2 {[%clk 0:26:49]} 43. Bb3 {[%clk
1:05:35]} 43... Bf6 {[%clk 0:27:00]} 44. Nd4 {[%clk 1:05:35]} 44... e5 {[%clk
0:18:43]} 45. Nf5 {[%clk 1:05:35]} 45... e4 {[%clk 0:18:27]} 46. Rd7 {[%clk
1:05:39]} 46... Nd3 {[%clk 0:15:27]} 47. Rxf7+ {[%clk 1:05:25]} 47... Ke8 {[%clk
0:15:51]} 48. Nd6+ {[%clk 1:02:18]} 48... Kd8 {[%clk 0:16:08]} 49. Be6 {[%clk
1:00:47]} 49... Ne5 {[%clk 0:15:52]} 50. Ra7 {[%clk 1:01:08]} 50... Re1 {[%clk
0:12:51]} 51. a4 {[%clk 0:58:41]} 51... h5 {[%clk 0:10:58]} 52. Nxe4 {[%clk
0:53:54]} 52... Rxe3 {[%clk 0:11:13]} 53. Nxf6 {[%clk 0:54:13]} 53... gxf6
{[%clk 0:11:38]} 54. Bf7 {[%clk 0:53:24]} 54... Re2+ {[%clk 0:04:55]} 55. Kf1
{[%clk 0:53:53]} 55... Re3 {[%clk 0:03:21]} 56. Bxh5 {[%clk 0:54:21]} 56... Rxg3
{[%clk 0:03:43]} 57. Be2 {[%clk 0:54:50]} 57... Rh3 {[%clk 0:03:27]} 58. h5
{[%clk 0:55:14]} 58... f5 {[%clk 0:03:54]} 59. Kg2 {[%clk 0:52:30]} 59... Rh4
{[%clk 0:03:35]} 60. Kg3 {[%clk 0:52:59]} 60... Re4 {[%clk 0:03:52]} 61. Kf2
{[%clk 0:50:48]} 61... Rf4+ {[%clk 0:03:53]} 62. Kg2 {[%clk 0:49:59]} 62... Re4
{[%clk 0:03:38]} 63. Kf1 {[%clk 0:49:10]} 63... Rf4+ {[%clk 0:03:08]} 64. Ke1
{[%clk 0:48:57]} 64... Rh4 {[%clk 0:03:09]} 65. a5 {[%clk 0:49:24]} 65... bxa5
{[%clk 0:03:08]} 66. bxa5 {[%clk 0:49:48]} 66... f4 {[%clk 0:01:47]} 67. a6
{[%clk 0:49:11]} 67... f3 {[%clk 0:01:21]} 68. Bb5 {[%clk 0:49:07]} 68... Rxh5
{[%clk 0:00:48]} 69. Rg7 {[%clk 0:48:58]} 69... Rh1+ {[%clk 0:01:03]} 70. Kf2
{[%clk 0:47:35]} 70... Ra1 {[%clk 0:01:19]} 71. a7 {[%clk 0:47:33]} 71... Kc8
{[%clk 0:01:42]} 72. Ke3 {[%clk 0:46:57]} 72... Ra3+ {[%clk 0:01:46]} 73. Kd4
{[%clk 0:46:56]} 73... Ra5 {[%clk 0:00:40]} 74. Ke3 {[%clk 0:46:01]} 74... Ra3+
{[%clk 0:00:53]} 75. Kf4 {[%clk 0:43:51]} 75... Ra5 {[%clk 0:01:14]} 76. Kg3
{[%clk 0:43:36]} 76... Ra3 {[%clk 0:01:13]} 77. Re7 {[%clk 0:42:46]} 77... Ng6
{[%clk 0:00:35]} 78. Rh7 {[%clk 0:40:37]} 78... Ne5 {[%clk 0:01:00]} 79. Kf4
{[%clk 0:39:53]} 79... Ra5 {[%clk 0:01:24]} 80. Ke3 {[%clk 0:40:12]} 80... Ra3+
{[%clk 0:01:41]} 81. Kd4 {[%clk 0:39:17]} 81... Ra5 {[%clk 0:02:07]} 82. Kc3
{[%clk 0:39:32]} 82... f2 {[%clk 0:01:50]} 83. Bf1 {[%clk 0:40:00]} 83... Nc6
{[%clk 0:01:42]} 84. Bh3+ {[%clk 0:40:13]} 84... Kd8 {[%clk 0:01:40]} 85. a8=Q+
{[%clk 0:40:31]} 85... Rxa8 {[%clk 0:02:05]} 86. Rh8+ {[%clk 0:40:59]} 1-0

[Variant "Standard"]
[Site "Europe Echecs"]

[Event "Open Cappelle-la-Grande"]
[Date "2025.02.16"]
[White "Orieux, Etienne"]
[Black "Bacrot, Alexandre"]
[WhiteElo "2197"]
[BlackElo "2423"]
[Round "3.3.11"]
[Result "0-1"]
[TimeControl "40/5400+30:1800+30"]

1. e4 {[%clk 1:30:56]} 1... d6 {[%clk 1:30:57]} 2. d4 {[%clk 1:31:17]} 2... Nf6
{[%clk 1:31:23]} 3. Nd2 {[%clk 1:31:37]} 3... e5 {[%clk 1:30:12]} 4. c3 {[%clk
1:32:00]} 4... Nbd7 {[%clk 1:27:28]} 5. Ngf3 {[%clk 1:32:03]} 5... Be7 {[%clk
1:24:13]} 6. Bd3 {[%clk 1:32:23]} 6... c6 {[%clk 1:23:33]} 7. O-O {[%clk
1:32:18]} 7... O-O {[%clk 1:24:00]} 8. Re1 {[%clk 1:31:23]} 8... Re8 {[%clk
1:22:32]} 9. Nf1 {[%clk 1:29:04]} 9... Qc7 {[%clk 1:15:44]} 10. Ng3 {[%clk
1:28:58]} 10... Nf8 {[%clk 1:16:09]} 11. a4 {[%clk 1:23:14]} 11... b6 {[%clk
1:10:52]} 12. h3 {[%clk 1:22:31]} 12... Bd7 {[%clk 1:10:30]} 13. b3 {[%clk
1:14:03]} 13... Rad8 {[%clk 1:10:41]} 14. Qc2 {[%clk 1:13:49]} 14... h6 {[%clk
1:08:03]} 15. Bb2 {[%clk 1:08:15]} 15... Ng6 {[%clk 1:08:02]} 16. c4 {[%clk
1:07:25]} 16... a5 {[%clk 0:57:40]} 17. Rad1 {[%clk 1:04:07]} 17... Bf8 {[%clk
0:57:22]} 18. Bf1 {[%clk 1:03:28]} 18... Bc8 {[%clk 0:55:42]} 19. Rd2 {[%clk
0:56:58]} 19... exd4 {[%clk 0:50:40]} 20. Bxd4 {[%clk 0:54:32]} 20... Nd7 {[%clk
0:51:03]} 21. Be3 {[%clk 0:52:37]} 21... Nc5 {[%clk 0:50:16]} 22. Nd4 {[%clk
0:50:00]} 22... Be7 {[%clk 0:42:48]} 23. Qd1 {[%clk 0:38:30]} 23... Bf6 {[%clk
0:40:55]} 24. Qc2 {[%clk 0:30:31]} 24... Be5 {[%clk 0:40:04]} 25. Ndf5 {[%clk
0:28:24]} 25... Kh8 {[%clk 0:33:34]} 26. Bd4 {[%clk 0:24:30]} 26... Bxd4 {[%clk
0:30:42]} 27. Rxd4 {[%clk 0:23:55]} 27... Bxf5 {[%clk 0:24:48]} 28. Nxf5 {[%clk
0:24:19]} 28... d5 {[%clk 0:24:15]} 29. cxd5 {[%clk 0:23:01]} 29... cxd5 {[%clk
0:24:24]} 30. Red1 {[%clk 0:16:58]} 30... dxe4 {[%clk 0:23:34]} 31. Nd6 {[%clk
0:17:02]} 31... Rxd6 {[%clk 0:20:24]} 32. Rxd6 {[%clk 0:17:26]} 32... Ne5 {[%clk
0:20:20]} 33. Bb5 {[%clk 0:16:24]} 33... Re7 {[%clk 0:20:09]} 34. Rd8+ {[%clk
0:14:26]} 34... Kh7 {[%clk 0:20:38]} 35. f3 {[%clk 0:13:52]} 35... Re6 {[%clk
0:15:06]} 36. Be2 {[%clk 0:05:20]} 36... Rg6 {[%clk 0:15:18]} 37. fxe4 {[%clk
0:05:21]} 37... Qe7 {[%clk 0:14:49]} 38. Kh1 {[%clk 0:03:03]} 38... Qg5 {[%clk
0:14:59]} 39. Bc4 {[%clk 0:01:20]} 39... Qh4 {[%clk 0:09:40]} 40. Qe2 {[%clk
0:00:56]} 40... Nxe4 {[%clk 0:05:39]} 41. R8d4 {[%clk 0:24:56]} 41... Nf2+
{[%clk 0:31:22]} 0-1

[Variant "Standard"]
[Site "Europe Echecs"]

[Event "Open Cappelle-la-Grande"]
[Date "2025.02.16"]
[White "Abergel, Thal"]
[Black "Feryn, Benjamin"]
[WhiteElo "2419"]
[BlackElo "2228"]
[Round "3.3.12"]
[Result "1-0"]
[TimeControl "40/5400+30:1800+30"]

1. d4 {[%clk 1:30:57]} 1... g6 {[%clk 1:30:50]} 2. e4 {[%clk 1:31:13]} 2... Bg7
{[%clk 1:31:11]} 3. Nc3 {[%clk 1:31:37]} 3... d5 {[%clk 1:31:13]} 4. exd5 {[%clk
1:29:40]} 4... Nf6 {[%clk 1:31:17]} 5. Bb5+ {[%clk 1:27:58]} 5... Nbd7 {[%clk
1:29:46]} 6. Nge2 {[%clk 1:27:22]} 6... O-O {[%clk 1:28:43]} 7. O-O {[%clk
1:26:23]} 7... Nb6 {[%clk 1:27:07]} 8. h3 {[%clk 1:25:48]} 8... Nbxd5 {[%clk
1:21:58]} 9. Nxd5 {[%clk 1:25:42]} 9... Nxd5 {[%clk 1:20:46]} 10. c3 {[%clk
1:25:01]} 10... e6 {[%clk 1:04:08]} 11. Re1 {[%clk 1:22:16]} 11... Bd7 {[%clk
0:57:22]} 12. Bc4 {[%clk 1:18:13]} 12... Bc6 {[%clk 0:49:44]} 13. Ng3 {[%clk
1:16:16]} 13... Re8 {[%clk 0:46:50]} 14. Bb3 {[%clk 1:15:09]} 14... e5 {[%clk
0:34:39]} 15. c4 {[%clk 1:12:32]} 15... Nf4 {[%clk 0:34:21]} 16. d5 {[%clk
1:08:17]} 16... Bd7 {[%clk 0:34:46]} 17. c5 {[%clk 1:06:49]} 17... Qh4 {[%clk
0:28:38]} 18. Qf3 {[%clk 1:00:50]} 18... c6 {[%clk 0:22:12]} 19. d6 {[%clk
0:57:55]} 19... Kh8 {[%clk 0:16:55]} 20. Bd2 {[%clk 0:47:33]} 20... f5 {[%clk
0:15:18]} 21. Rad1 {[%clk 0:43:02]} 21... Ne6 {[%clk 0:14:17]} 22. Bxe6 {[%clk
0:41:20]} 22... Bxe6 {[%clk 0:14:17]} 23. Bc3 {[%clk 0:41:05]} 23... Bd7 {[%clk
0:05:33]} 24. b4 {[%clk 0:36:14]} 24... Re6 {[%clk 0:03:40]} 25. Qe2 {[%clk
0:32:42]} 25... Rf8 {[%clk 0:02:51]} 26. Nf1 {[%clk 0:28:31]} 26... e4 {[%clk
0:02:53]} 27. Qb2 {[%clk 0:25:58]} 27... Bxc3 {[%clk 0:02:32]} 28. Qxc3+ {[%clk
0:26:26]} 28... Kg8 {[%clk 0:02:42]} 29. Qa3 {[%clk 0:22:28]} 29... a6 {[%clk
0:02:23]} 30. Nd2 {[%clk 0:20:36]} 30... Rfe8 {[%clk 0:02:22]} 31. Qb3 {[%clk
0:19:39]} 31... Kg7 {[%clk 0:00:38]} 32. Nc4 {[%clk 0:18:52]} 32... Qf6 {[%clk
0:00:57]} 33. Nb6 {[%clk 0:18:33]} 33... Rd8 {[%clk 0:01:22]} 34. Rd2 {[%clk
0:16:15]} 34... f4 {[%clk 0:00:46]} 35. Rde2 {[%clk 0:15:42]} 35... e3 {[%clk
0:00:34]} 36. fxe3 {[%clk 0:15:10]} 36... Rxe3 {[%clk 0:00:37]} 37. Nxd7 {[%clk
0:12:44]} 37... Rxd7 {[%clk 0:00:36]} 38. Rxe3 {[%clk 0:12:55]} 38... fxe3
{[%clk 0:00:33]} 39. Qxe3 {[%clk 0:12:45]} 1-0

[Variant "Standard"]
[Site "Europe Echecs"]

[Event "Open Cappelle-la-Grande"]
[Date "2025.02.16"]
[White "Pranesh M"]
[Black "Pucher, Sebastien"]
[WhiteElo "2586"]
[BlackElo "2224"]
[Round "3.3.13"]
[Result "1-0"]
[TimeControl "40/5400+30:1800+30"]

1. e4 {[%clk 1:30:56]} 1... Nf6 {[%clk 1:29:29]} 2. e5 {[%clk 1:31:20]} 2... Nd5
{[%clk 1:29:55]} 3. d4 {[%clk 1:31:47]} 3... d6 {[%clk 1:30:19]} 4. Nf3 {[%clk
1:32:13]} 4... dxe5 {[%clk 1:30:12]} 5. dxe5 {[%clk 1:31:44]} 5... Bg4 {[%clk
1:30:00]} 6. h3 {[%clk 1:31:03]} 6... Bxf3 {[%clk 1:28:49]} 7. Qxf3 {[%clk
1:31:27]} 7... e6 {[%clk 1:28:40]} 8. a3 {[%clk 1:28:24]} 8... Nd7 {[%clk
1:24:57]} 9. Qg3 {[%clk 1:27:22]} 9... Ne7 {[%clk 1:03:46]} 10. Nd2 {[%clk
1:21:24]} 10... Nf5 {[%clk 0:55:11]} 11. Qc3 {[%clk 1:17:45]} 11... c6 {[%clk
0:38:58]} 12. Nf3 {[%clk 1:04:49]} 12... Be7 {[%clk 0:23:53]} 13. Be2 {[%clk
0:49:29]} 13... h5 {[%clk 0:16:54]} 14. b4 {[%clk 0:43:58]} 14... a5 {[%clk
0:07:18]} 15. Rb1 {[%clk 0:42:59]} 15... axb4 {[%clk 0:04:43]} 16. axb4 {[%clk
0:43:27]} 16... Nb6 {[%clk 0:02:52]} 17. O-O {[%clk 0:42:37]} 17... Nd5 {[%clk
0:01:41]} 18. Qc4 {[%clk 0:42:37]} 18... O-O {[%clk 0:00:44]} 19. Bd2 {[%clk
0:41:51]} 19... Qd7 {[%clk 0:00:49]} 20. Bd3 {[%clk 0:41:52]} 20... b5 {[%clk
0:00:37]} 21. Qe4 {[%clk 0:42:12]} 21... g6 {[%clk 0:00:43]} 22. g4 {[%clk
0:42:24]} 22... Ng7 {[%clk 0:00:34]} 23. Kh1 {[%clk 0:41:49]} 23... Ra4 {[%clk
0:00:39]} 24. gxh5 {[%clk 0:40:41]} 24... Nxh5 {[%clk 0:01:08]} 25. Rg1 {[%clk
0:37:58]} 25... Bxb4 {[%clk 0:00:32]} 26. Bxb4 {[%clk 0:38:02]} 26... c5 {[%clk
0:00:41]} 27. Qh4 {[%clk 0:35:11]} 27... Rxb4 {[%clk 0:00:32]} 28. Rxb4 {[%clk
0:35:22]} 28... cxb4 {[%clk 0:00:35]} 29. Qxh5 {[%clk 0:35:13]} 29... Nf4 {[%clk
0:00:46]} 30. Qh6 {[%clk 0:32:56]} 30... Nxd3 {[%clk 0:01:05]} 31. Ng5 {[%clk
0:29:46]} 31... Nxf2+ {[%clk 0:01:06]} 32. Kh2 {[%clk 0:30:12]} 32... Rc8 {[%clk
0:00:37]} 33. Qh7+ {[%clk 0:28:31]} 33... Kf8 {[%clk 0:01:05]} 34. Qh8+ {[%clk
0:27:30]} 34... Ke7 {[%clk 0:01:34]} 35. Qf6+ {[%clk 0:27:54]} 35... Ke8 {[%clk
0:01:12]} 36. Qxf2 {[%clk 0:28:19]} 36... Qc7 {[%clk 0:01:21]} 37. Kh1 {[%clk
0:28:45]} 1-0

[Variant "Standard"]
[Site "Europe Echecs"]

[Event "Open Cappelle-la-Grande"]
[Date "2025.02.16"]
[White "Girel, Joseph"]
[Black "Saad, Gabriel"]
[WhiteElo "2484"]
[BlackElo "2220"]
[Round "3.3.14"]
[Result "1-0"]
[TimeControl "40/5400+30:1800+30"]

1. d4 {[%clk 1:27:44]} 1... Nf6 {[%clk 1:30:58]} 2. c4 {[%clk 1:27:49]} 2... g6
{[%clk 1:31:26]} 3. Nc3 {[%clk 1:27:56]} 3... Bg7 {[%clk 1:31:54]} 4. e4 {[%clk
1:27:47]} 4... O-O {[%clk 1:32:21]} 5. Nf3 {[%clk 1:27:08]} 5... c5 {[%clk
1:32:50]} 6. d5 {[%clk 1:23:48]} 6... d6 {[%clk 1:33:18]} 7. h3 {[%clk 1:22:42]}
7... e6 {[%clk 1:33:43]} 8. Bd3 {[%clk 1:22:01]} 8... exd5 {[%clk 1:34:11]} 9.
cxd5 {[%clk 1:21:58]} 9... b5 {[%clk 1:34:00]} 10. Nxb5 {[%clk 1:22:05]} 10...
Nxe4 {[%clk 1:34:19]} 11. Bxe4 {[%clk 1:22:02]} 11... Re8 {[%clk 1:34:48]} 12.
Ng5 {[%clk 1:21:20]} 12... h6 {[%clk 1:30:42]} 13. Ne6 {[%clk 1:21:26]} 13...
Bxe6 {[%clk 1:24:54]} 14. dxe6 {[%clk 1:21:15]} 14... Rxe6 {[%clk 1:22:07]} 15.
O-O {[%clk 1:16:07]} 15... Rxe4 {[%clk 1:21:44]} 16. Qd5 {[%clk 1:16:06]} 16...
Rb4 {[%clk 1:21:34]} 17. Qxa8 {[%clk 1:13:08]} 17... Rxb5 {[%clk 1:21:59]} 18.
Rd1 {[%clk 1:07:06]} 18... Bd4 {[%clk 1:14:54]} 19. Qxa7 {[%clk 0:59:40]} 19...
Kg7 {[%clk 0:55:24]} 20. Qa4 {[%clk 0:56:18]} 20... Rb4 {[%clk 0:53:54]} 21. Qc2
{[%clk 0:55:35]} 21... Nc6 {[%clk 0:52:58]} 22. Rb1 {[%clk 0:55:45]} 22... Qf6
{[%clk 0:51:53]} 23. b3 {[%clk 0:52:57]} 23... c4 {[%clk 0:47:28]} 24. Be3
{[%clk 0:45:36]} 24... Bxe3 {[%clk 0:42:24]} 25. fxe3 {[%clk 0:45:52]} 25... Ne5
{[%clk 0:42:15]} 26. Rf1 {[%clk 0:42:25]} 26... Qg5 {[%clk 0:41:51]} 27. Qc3
{[%clk 0:42:33]} 27... Rb6 {[%clk 0:40:40]} 28. bxc4 {[%clk 0:41:17]} 28... Ra6
{[%clk 0:38:58]} 29. a3 {[%clk 0:38:05]} 29... Ra7 {[%clk 0:38:06]} 30. Rf4
{[%clk 0:33:20]} 30... Kh7 {[%clk 0:37:14]} 31. Kh1 {[%clk 0:32:07]} 31... Qg3
{[%clk 0:35:09]} 32. c5 {[%clk 0:30:13]} 32... Rc7 {[%clk 0:33:40]} 33. c6
{[%clk 0:28:55]} 33... g5 {[%clk 0:33:04]} 34. Rd4 {[%clk 0:23:17]} 34... Rxc6
{[%clk 0:31:22]} 35. Qe1 {[%clk 0:23:39]} 35... Qxe1+ {[%clk 0:31:27]} 36. Rxe1
{[%clk 0:24:07]} 36... Ra6 {[%clk 0:30:13]} 37. a4 {[%clk 0:23:39]} 37... Kg6
{[%clk 0:30:11]} 38. Ra1 {[%clk 0:22:07]} 38... Kf5 {[%clk 0:30:01]} 39. a5
{[%clk 0:20:03]} 39... Ke6 {[%clk 0:29:30]} 40. Rb4 {[%clk 0:20:19]} 40... Nd7
{[%clk 0:29:47]} 41. Rb5 {[%clk 0:19:56]} 41... f5 {[%clk 0:29:39]} 42. Kg1
{[%clk 0:19:03]} 42... h5 {[%clk 0:29:10]} 43. g3 {[%clk 0:18:22]} 43... g4
{[%clk 0:27:01]} 44. h4 {[%clk 0:18:31]} 44... Ne5 {[%clk 0:25:47]} 45. Rb6
{[%clk 0:18:20]} 45... Ra8 {[%clk 0:25:24]} 46. a6 {[%clk 0:17:35]} 46... Rc8
{[%clk 0:25:26]} 47. a7 {[%clk 0:16:32]} 47... Kd5 {[%clk 0:17:56]} 1-0

[Variant "Standard"]
[Site "Europe Echecs"]

[Event "Open Cappelle-la-Grande"]
[Date "2025.02.16"]
[White "Kurmangaliyeva, Liya"]
[Black "Prraneeth Vuppala"]
[WhiteElo "2251"]
[BlackElo "2442"]
[Round "3.3.15"]
[Result "1/2-1/2"]
[TimeControl "40/5400+30:1800+30"]

1. e4 {[%clk 1:30:50]} 1... c5 {[%clk 1:30:42]} 2. Nf3 {[%clk 1:31:03]} 2... d6
{[%clk 1:30:56]} 3. d4 {[%clk 1:31:17]} 3... cxd4 {[%clk 1:31:15]} 4. Nxd4
{[%clk 1:31:40]} 4... Nf6 {[%clk 1:31:36]} 5. Nc3 {[%clk 1:31:54]} 5... a6
{[%clk 1:31:51]} 6. h3 {[%clk 1:31:09]} 6... e5 {[%clk 1:31:32]} 7. Nb3 {[%clk
1:31:23]} 7... Be7 {[%clk 1:28:05]} 8. g4 {[%clk 1:31:08]} 8... h6 {[%clk
1:25:24]} 9. Be3 {[%clk 1:31:09]} 9... Be6 {[%clk 1:21:38]} 10. Qf3 {[%clk
1:30:03]} 10... Nbd7 {[%clk 1:17:20]} 11. O-O-O {[%clk 1:29:58]} 11... Rc8
{[%clk 1:16:52]} 12. Nd5 {[%clk 1:28:31]} 12... Bxd5 {[%clk 1:13:31]} 13. exd5
{[%clk 1:28:46]} 13... Nb6 {[%clk 1:09:16]} 14. Kb1 {[%clk 1:08:58]} 14... Nc4
{[%clk 0:56:51]} 15. Bc1 {[%clk 0:58:41]} 15... Nd7 {[%clk 0:51:43]} 16. Qe4
{[%clk 0:54:10]} 16... Nf6 {[%clk 0:35:22]} 17. Qe2 {[%clk 0:48:08]} 17... Nd7
{[%clk 0:26:06]} 18. Qe4 {[%clk 0:36:05]} 18... Nf6 {[%clk 0:24:51]} 19. Qg2
{[%clk 0:36:24]} 19... a5 {[%clk 0:21:46]} 20. h4 {[%clk 0:34:10]} 20... Qc7
{[%clk 0:17:58]} 21. Bd3 {[%clk 0:31:50]} 21... e4 {[%clk 0:14:27]} 22. Bxe4
{[%clk 0:27:26]} 22... Nxe4 {[%clk 0:14:31]} 23. Qxe4 {[%clk 0:27:51]} 23... O-O
{[%clk 0:14:32]} 24. g5 {[%clk 0:16:24]} 24... Rfe8 {[%clk 0:14:54]} 25. Rde1
{[%clk 0:16:02]} 25... a4 {[%clk 0:10:50]} 26. Nd4 {[%clk 0:15:21]} 26... Qb6
{[%clk 0:11:07]} 27. Qd3 {[%clk 0:12:03]} 27... Ne5 {[%clk 0:09:45]} 28. Qd1
{[%clk 0:11:55]} 28... Nc4 {[%clk 0:05:46]} 29. Rh3 {[%clk 0:11:20]} 29... h5
{[%clk 0:04:10]} 30. f4 {[%clk 0:09:07]} 30... Bf8 {[%clk 0:04:34]} 31. Rxe8
{[%clk 0:06:17]} 31... Rxe8 {[%clk 0:05:03]} 32. g6 {[%clk 0:06:25]} 32... fxg6
{[%clk 0:02:11]} 33. Ne6 {[%clk 0:06:51]} 33... Be7 {[%clk 0:02:28]} 34. Rc3
{[%clk 0:04:33]} 34... Nxb2 {[%clk 0:02:09]} 35. Bxb2 {[%clk 0:03:29]} 35... Bf6
{[%clk 0:02:38]} 36. Qd3 {[%clk 0:02:29]} 36... Qg1+ {[%clk 0:02:03]} 37. Bc1
{[%clk 0:02:55]} 37... Qb6+ {[%clk 0:02:21]} 38. Bb2 {[%clk 0:02:03]} 38... Qg1+
{[%clk 0:02:21]} 39. Bc1 {[%clk 0:02:29]} 39... Qb6+ {[%clk 0:02:48]} 40. Bb2
{[%clk 0:02:15]} 1/2-1/2

[Variant "Standard"]
[Site "Europe Echecs"]

[Event "Open Cappelle-la-Grande"]
[Date "2025.02.16"]
[White "Duboue, Peio"]
[Black "Wacker, Peter"]
[WhiteElo "2440"]
[BlackElo "2207"]
[Round "3.3.16"]
[Result "1-0"]
[TimeControl "40/5400+30:1800+30"]

1. e4 {[%clk 0:36:41]} 1... c5 {[%clk 1:30:38]} 2. c3 {[%clk 0:37:08]} 2... Nf6
{[%clk 1:30:44]} 3. e5 {[%clk 0:37:36]} 3... Nd5 {[%clk 1:31:08]} 4. d4 {[%clk
0:38:03]} 4... cxd4 {[%clk 1:31:15]} 5. Nf3 {[%clk 0:38:31]} 5... Nc6 {[%clk
1:31:07]} 6. cxd4 {[%clk 0:38:57]} 6... d6 {[%clk 1:31:03]} 7. Bc4 {[%clk
0:39:24]} 7... Nb6 {[%clk 1:27:02]} 8. Bb5 {[%clk 0:39:51]} 8... dxe5 {[%clk
1:24:07]} 9. Nxe5 {[%clk 0:40:15]} 9... Bd7 {[%clk 1:24:31]} 10. Nxd7 {[%clk
0:40:42]} 10... Qxd7 {[%clk 1:24:57]} 11. Nc3 {[%clk 0:41:10]} 11... e6 {[%clk
1:23:49]} 12. O-O {[%clk 0:41:35]} 12... a6 {[%clk 1:23:18]} 13. Bxc6 {[%clk
0:42:01]} 13... Qxc6 {[%clk 1:23:45]} 14. Be3 {[%clk 0:42:26]} 14... Nd5 {[%clk
1:08:57]} 15. Qg4 {[%clk 0:42:03]} 15... Nf6 {[%clk 0:53:46]} 16. Qg3 {[%clk
0:38:55]} 16... Bd6 {[%clk 0:48:07]} 17. d5 {[%clk 0:32:23]} 17... exd5 {[%clk
0:44:15]} 18. Bf4 {[%clk 0:32:47]} 18... Bxf4 {[%clk 0:37:08]} 19. Rfe1+ {[%clk
0:32:39]} 19... Ne4 {[%clk 0:16:37]} 20. Qxg7 {[%clk 0:30:15]} 20... Bxh2+
{[%clk 0:12:10]} 21. Kxh2 {[%clk 0:30:39]} 21... Qd6+ {[%clk 0:11:40]} 22. Kg1
{[%clk 0:26:08]} 22... O-O-O {[%clk 0:12:04]} 23. Nxe4 {[%clk 0:25:48]} 23...
dxe4 {[%clk 0:12:30]} 24. Qxf7 {[%clk 0:24:44]} 24... Rhe8 {[%clk 0:04:47]} 25.
Qc4+ {[%clk 0:22:36]} 25... Qc6 {[%clk 0:04:52]} 26. Rac1 {[%clk 0:21:35]} 26...
Qxc4 {[%clk 0:04:27]} 27. Rxc4+ {[%clk 0:22:01]} 27... Kb8 {[%clk 0:04:53]} 28.
Rcxe4 {[%clk 0:21:35]} 28... Rxe4 {[%clk 0:05:09]} 29. Rxe4 {[%clk 0:22:01]}
29... Rd2 {[%clk 0:05:34]} 30. Rb4 {[%clk 0:20:58]} 30... Kc7 {[%clk 0:05:45]}
31. a4 {[%clk 0:19:19]} 31... Kc6 {[%clk 0:06:09]} 32. a5 {[%clk 0:18:38]} 32...
Kc7 {[%clk 0:02:14]} 33. Rb6 {[%clk 0:18:17]} 1-0

[Variant "Standard"]
[Site "Europe Echecs"]